bitfinex/quotes_SOLUSD_20251007
["timestamp","ask_amount","ask_price","bid_price","bid_amount"]
[1759811977989,0.1,234.72,234.67,0.71]
[1759811978191,0.71,234.71,234.68,30.06]
[1759811978401,0.1,234.72,234.68,30.06]
[1759811978589,0.1,234.72,234.68,30.77]
[1759811979007,0.1,234.72,234.68,30.06]
[1759811979602,0.1,234.72,234.68,35.03111816]
[1759811981611,0.1,234.72,234.69,0.71]
[1759811981803,0.1,234.72,234.7,30.77]
[1759811982011,0.1,234.72,234.7,30.06]
[1759811983608,0.1,234.72,234.68,4.97111816]
[1759811983814,0.1,234.72,234.69,30.75]
[1759811984396,0.1,234.72,234.7,0.71]
[1759811984617,0.1,234.72,234.71,30.04]
[1759811986120,0.81,234.72,234.71,30.04]
[1759811986321,0.1,234.72,234.71,30.04]
[1759811986995,0.1,234.72,234.71,30.02]
[1759811987518,5.07039536,234.72,234.64,4.97167506]
[1759811987726,5.07039536,234.72,234.66,20.8]
[1759811988023,5.07039536,234.72,234.67,30.02]
[1759811988323,0.71,234.71,234.67,30.02]
[1759811989125,4.36039536,234.72,234.67,30.02]
[1759811989420,0.7,234.71,234.68,30.02]
[1759811989931,0.7,234.7,234.68,30.02]
[1759811990135,0.7,234.69,234.62,33.88]
[1759811990312,0.7,234.69,234.63,30.04]
[1759811990515,3.31138709,234.68,234.58,10.87647521]
[1759811990830,0.7,234.67,234.62,20.8]
[1759811991124,0.7,234.67,234.63,30.04]
[1759811991431,0.7,234.66,234.63,30.04]
[1759811992331,4.26166631,234.65,234.63,30.04]
[1759811992521,0.7,234.68,234.63,30.04]
[1759811992711,0.7,234.67,234.63,30.04]
[1759811992907,6.87250861,234.68,234.64,30.02]
[1759811993128,0.7,234.66,234.64,30.02]
[1759811993324,0.7,234.65,234.6,20.8]
[1759811993507,3.31138709,234.65,234.57,0.68]
[1759811993831,2.61138709,234.64,234.58,30.04]
[1759811994005,0.7,234.63,234.58,30.04]
[1759811994208,0.7,234.62,234.58,30.04]
[1759811995210,0.7,234.62,234.57,20.8]
[1759811995422,0.7,234.62,234.59,30.02]
[1759811995616,0.7,234.61,234.59,30.02]
[1759811996321,6.87374382,234.62,234.6,30.02]
[1759811996518,2.61138709,234.63,234.61,30.02]
[1759811996823,0.7,234.62,234.61,30.02]
[1759811997033,2.61138709,234.63,234.61,30.02]
[1759811997210,3.31138709,234.63,234.61,30.02]
[1759811997815,4.26221123,234.62,234.61,30.02]
[1759811998114,3.31138709,234.63,234.61,30.02]
[1759811998737,7.5734488,234.63,234.61,30.02]
[1759811999106,0.7,234.62,234.61,30.02]
[1759811999315,6.8734488,234.63,234.61,30.02]
[1759812000431,4.9617903,234.65,234.61,30.02]
[1759812000730,21.3005443,234.74,234.62,0.68]
[1759812000731,0.7,234.68,234.62,0.68]
[1759812001045,2.61138709,234.66,234.62,0.68]
[1759812001938,6.87290935,234.66,234.61,30.02]
[1759812002240,2.61138709,234.63,234.61,30.02]
[1759812002643,3.31138709,234.62,234.55,0.68]
[1759812002823,2.61138709,234.61,234.56,30.0]
[1759812003024,2.61138709,234.61,234.57,0.68]
[1759812003430,3.31138709,234.62,234.57,0.68]
[1759812003632,2.61138709,234.62,234.58,0.68]
[1759812003841,2.61138709,234.62,234.56,30.68]
[1759812003842,6.87375786,234.62,234.56,30.68]
[1759812004025,7.57375786,234.62,234.56,30.68]
[1759812004228,4.96237077,234.62,234.56,30.68]
[1759812004416,7.57375786,234.62,234.57,30.0]
[1759812004624,4.2620159,234.64,234.57,30.68]
[1759812004948,4.2620159,234.64,234.58,0.68]
[1759812005241,6.87340299,234.64,234.58,0.68]
[1759812005945,2.61138709,234.63,234.58,0.68]
[1759812006118,2.61138709,234.62,234.58,0.68]
[1759812006544,4.9620159,234.64,234.58,0.68]
[1759812006766,4.26167591,234.65,234.59,0.68]
[1759812006934,2.61138709,234.64,234.59,0.68]
[1759812007131,2.61138709,234.63,234.59,0.68]
[1759812007854,0.7,234.62,234.59,30.02]
[1759812008020,2.61138709,234.6,234.59,30.02]
[1759812008673,3.31138709,234.6,234.59,30.02]
[1759812009924,10.18534877,234.6,234.59,30.02]
[1759812010128,10.18534877,234.6,234.5,0.68]
[1759812010129,31.71826046,234.6,234.5,0.68]
[1759812010427,2.61138709,234.52,234.51,24.1]
[1759812011956,6.87541574,234.52,234.51,24.1]
[1759812012650,0.7,234.62,234.51,24.78]
[1759812012850,20.8,234.62,234.52,0.68]
[1759812013155,2.61138709,234.57,234.52,0.68]
[1759812013344,0.7,234.61,234.51,28.36418597]
[1759812013345,0.7,234.59,234.51,24.1]
[1759812013649,2.61138709,234.58,234.53,0.68]
[1759812014030,4.2623929,234.61,234.53,0.68]
[1759812014231,2.61138709,234.6,234.53,0.68]
[1759812014761,6.87377999,234.61,234.53,0.68]
[1759812015131,6.87377999,234.61,234.53,4.9437818]
[1759812015433,6.87377999,234.61,234.54,0.68]
[1759812016148,2.61138709,234.58,234.54,0.68]
[1759812016659,6.87377999,234.61,234.55,0.68]
[1759812017052,4.26219055,234.63,234.55,0.68]
[1759812017248,4.26219055,234.63,234.56,4.2633015]
[1759812017453,4.26219055,234.63,234.57,30.74]
[1759812017763,4.26219055,234.63,234.58,0.68]
[1759812017944,4.26219055,234.63,234.59,0.68]
[1759812018141,4.26219055,234.63,234.6,0.68]
[1759812018344,2.61138709,234.65,234.61,0.72]
[1759812018544,3.33138709,234.64,234.62,30.06]
[1759812018765,3.33138709,234.63,234.62,30.06]
[1759812018936,0.72,234.63,234.57,0.72]
[1759812019135,2.61138709,234.62,234.57,0.72]
[1759812019359,4.2623929,234.61,234.58,30.08]
[1759812019962,4.2623929,234.61,234.58,30.8]
[1759812020454,4.26221413,234.62,234.58,30.08]
[1759812020755,4.26221413,234.62,234.59,0.72]
[1759812021940,4.26221413,234.62,234.6,30.06]
[1759812022634,6.87341666,234.63,234.6,30.06]
[1759812023337,7.59341666,234.63,234.57,0.72]
[1759812023666,7.59341666,234.63,234.58,30.04]
[1759812024159,7.59341666,234.63,234.58,30.76]
[1759812024561,6.87341666,234.63,234.59,0.72]
[1759812025349,6.87341666,234.63,234.6,30.04]
[1759812025350,4.26202957,234.63,234.6,30.04]
[1759812025551,4.26202957,234.63,234.61,30.04]
[1759812026360,4.26202957,234.63,234.55,20.8]
[1759812026361,7.59341666,234.63,234.57,0.72]
[1759812026561,15.63710351,234.63,234.55,0.72]
[1759812026769,2.61138709,234.6,234.56,30.02]
[1759812027057,3.33138709,234.6,234.56,30.02]
[1759812027258,2.61138709,234.58,234.56,30.02]
[1759812027459,0.72,234.6,234.57,30.02]
[1759812027460,2.61138709,234.59,234.57,30.02]
[1759812027838,14.91710351,234.63,234.57,30.02]
[1759812028057,3.33138709,234.62,234.57,30.02]
[1759812028248,7.59395267,234.61,234.57,30.02]
[1759812028458,6.87395267,234.61,234.57,30.74]
[1759812028657,4.26256558,234.61,234.58,0.72]
[1759812028970,4.26256558,234.61,234.59,0.72]
[1759812029355,4.26214621,234.63,234.6,0.72]
[1759812029552,4.26214621,234.63,234.61,0.72]
[1759812029859,4.26214621,234.63,234.62,30.02]
[1759812030363,12.79181323,234.64,234.62,30.02]
[1759812030585,4.26174736,234.65,234.63,0.72]
[1759812031974,4.26148906,234.66,234.63,0.72]
[1759812032344,4.26148906,234.66,234.62,30.02]
[1759812032548,12.79017714,234.67,234.63,0.72]
[1759812032759,17.05148471,234.67,234.63,0.72]
[1759812032973,17.05148471,234.67,234.62,30.02]
[1759812033142,17.05148471,234.67,234.63,0.72]
[1759812034320,12.79017714,234.67,234.64,0.72]
[1759812034438,2.61138709,234.69,234.64,0.72]
[1759812034638,3.33138709,234.69,234.64,0.72]
[1759812034859,16.12047373,234.69,234.64,0.72]
[1759812035754,3.33138709,234.68,234.62,30.02]
[1759812036275,4.2614847,234.66,234.62,30.02]
[1759812036575,4.2614847,234.66,234.63,30.0]
[1759812036774,7.59262783,234.68,234.63,30.0]
[1759812037074,0.69,234.67,234.63,30.0]
[1759812037873,4.26139013,234.67,234.63,30.71]
[1759812039083,5.9341907,234.67,234.63,30.71]
[1759812039261,5.9341907,234.67,234.63,0.71]
[1759812039467,5.9341907,234.67,234.64,29.98]
[1759812040552,4.26139013,234.67,234.64,29.98]
[1759812045273,4.26139013,234.67,234.65,0.71]
[1759812045473,4.26139013,234.67,234.66,0.71]
[1759812045974,4.26139013,234.67,234.64,30.69]
[1759812047505,12.78908664,234.68,234.64,29.98]
[1759812047666,4.26093996,234.69,234.65,0.71]
[1759812048480,17.04857321,234.71,234.65,0.71]
[1759812048769,5.93337745,234.71,234.65,0.71]
[1759812049002,18.72137378,234.71,234.65,0.71]
[1759812049206,17.04857321,234.71,234.65,0.71]
[1759812049406,1.67280057,234.7,234.65,0.71]
[1759812049604,1.67280057,234.7,234.66,0.66]
[1759812050100,14.4607969,234.7,234.66,0.66]
[1759812050300,14.4607969,234.7,234.67,29.92]
[1759812050681,4.26093996,234.69,234.67,29.92]
[1759812051402,4.26093996,234.69,234.67,30.58]
[1759812052107,4.26093996,234.69,234.68,29.92]
[1759812053205,0.1,234.72,234.68,30.58]
[1759812053386,0.1,234.72,234.69,0.66]
[1759812053585,12.78527136,234.78,234.69,0.66]
[1759812053779,4.25894378,234.8,234.71,20.8]
[1759812053978,4.25894378,234.8,234.72,30.68]
[1759812054201,4.25894378,234.8,234.73,0.66]
[1759812054589,0.1,234.81,234.73,0.66]
[1759812054795,1.67280057,234.78,234.69,20.8]
[1759812054991,1.67280057,234.78,234.68,20.8]
[1759812054992,0.68,234.78,234.71,0.66]
[1759812055192,4.35892216,234.81,234.71,0.66]
[1759812055703,1.67280057,234.79,234.72,30.06]
[1759812055902,0.68,234.79,234.72,30.06]
[1759812056077,2.35280057,234.79,234.72,30.72]
[1759812056280,15.13534813,234.79,234.72,30.72]
[1759812056505,15.13534813,234.79,234.73,30.06]
[1759812056710,14.90757304,234.78,234.73,30.06]
[1759812056878,15.58757304,234.78,234.73,30.72]
[1759812057405,2.35280057,234.77,234.68,0.66]
[1759812057599,12.54927578,234.76,234.68,0.66]
[1759812057908,2.35280057,234.75,234.69,20.48]
[1759812058210,15.13970677,234.75,234.69,20.48]
[1759812058705,14.91011331,234.74,234.69,20.48]
[1759812058877,27.69701951,234.74,234.7,0.66]
[1759812059081,0.68,234.73,234.68,0.66]
[1759812059385,0.68,234.72,234.69,30.08]
[1759812059705,13.4669062,234.72,234.69,30.08]
[1759812059901,12.7869062,234.72,234.69,30.08]
[1759812060089,12.7869062,234.72,234.61,16.87944858]
[1759812060297,12.7869062,234.72,234.62,30.74]
[1759812060626,14.91011331,234.74,234.65,20.8]
[1759812060813,4.2598509,234.75,234.66,25.0614847]
[1759812061012,12.7869062,234.73,234.67,30.74]
[1759812061190,4.2598509,234.75,234.68,0.66]
[1759812061507,17.04566716,234.75,234.68,0.66]
[1759812061705,4.2598509,234.75,234.68,0.66]
[1759812062613,4.2598509,234.75,234.69,30.08]
[1759812062805,4.2598509,234.75,234.7,0.66]
[1759812063108,4.2598509,234.75,234.71,0.66]
[1759812064009,14.90841552,234.77,234.71,0.66]
[1759812064212,12.78472651,234.75,234.71,0.66]
[1759812065614,4.26003237,234.74,234.71,0.66]
[1759812067607,12.78472651,234.75,234.72,0.66]
[1759812068096,17.04459066,234.75,234.7,0.66]
[1759812068416,17.04459066,234.75,234.71,0.66]
[1759812068596,17.04459066,234.75,234.72,0.66]
[1759812068911,4.25986415,234.75,234.7,0.66]
[1759812069232,4.25986415,234.75,234.67,4.26118498]
[1759812069233,14.90949141,234.75,234.68,0.66]
[1759812069532,0.68,234.74,234.69,30.04]
[1759812069688,14.90949141,234.75,234.69,30.04]
[1759812069689,0.68,234.73,234.69,30.04]
[1759812070210,0.68,234.72,234.7,30.04]
[1759812071115,4.26057688,234.71,234.7,30.04]
[1759812071698,4.94057688,234.71,234.7,30.04]
[1759812071909,4.26057688,234.71,234.7,30.04]
[1759812073814,4.94057688,234.71,234.7,30.04]
[1759812074006,4.26057688,234.71,234.7,30.02]
[1759812074813,17.04748308,234.71,234.7,30.02]
[1759812074995,17.72748308,234.71,234.7,30.02]
[1759812075323,28.37892528,234.71,234.66,0.66]
[1759812075498,28.37892528,234.71,234.7,30.02]
[1759812075699,27.69892528,234.71,234.7,30.02]
[1759812076007,27.69892528,234.71,234.59,21.53313171]
[1759812076008,10.87647521,234.66,234.55,12.71755139]
[1759812076222,1.67280057,234.62,234.58,30.02]
[1759812076403,0.68,234.61,234.58,30.02]
[1759812076724,11.55647521,234.61,234.58,30.02]
[1759812077305,4.26257459,234.6,234.58,30.02]
[1759812078025,4.26257459,234.6,234.42,26.56450093]
[1759812078026,20.8,234.58,234.42,26.56450093]
[1759812078344,22.47280057,234.54,234.43,30.88]
[1759812078495,0.68,234.53,234.44,0.69]
[1759812079016,1.67280057,234.49,234.44,0.69]
[1759812079230,4.26457418,234.49,234.45,0.69]
[1759812080006,4.26457418,234.49,234.43,30.22]
[1759812080204,4.26430344,234.51,234.45,0.69]
[1759812080830,4.26400022,234.53,234.45,0.69]
[1759812081816,4.26400022,234.53,234.45,4.9552636]
[1759812082017,4.26400022,234.53,234.46,0.69]
[1759812082416,1.67280057,234.49,234.42,0.69]
[1759812082623,1.67280057,234.49,234.43,30.2]
[1759812082839,0.68,234.51,234.43,30.89]
[1759812083154,1.67280057,234.49,234.43,30.89]
[1759812083438,4.26475605,234.48,234.43,30.89]
[1759812083610,4.26475605,234.48,234.44,0.69]
[1759812083812,4.26475605,234.48,234.43,30.2]
[1759812084123,1.67280057,234.47,234.44,30.26]
[1759812084632,2.35280057,234.47,234.44,30.26]
[1759812085202,4.26511984,234.46,234.44,30.26]
[1759812086606,4.26483376,234.48,234.45,0.69]
[1759812086932,4.26483376,234.48,234.44,30.26]
[1759812086933,4.26483376,234.48,234.46,0.69]
[1759812087135,4.26439232,234.5,234.46,0.69]
[1759812087339,14.92537313,234.5,234.46,0.69]
[1759812088431,14.92537313,234.5,234.44,30.95]
[1759812088624,15.60537313,234.5,234.42,0.69]
[1759812088826,17.2781737,234.5,234.43,30.3]
[1759812089030,17.2781737,234.5,234.43,30.99]
[1759812089228,14.92537313,234.5,234.44,0.69]
[1759812090243,0.68,234.49,234.45,30.32]
[1759812090441,0.68,234.49,234.46,30.32]
[1759812090627,14.92537313,234.5,234.46,30.32]
[1759812090821,14.92537313,234.5,234.46,31.01]
[1759812091026,14.92537313,234.5,234.47,0.69]
[1759812091027,4.26439232,234.5,234.47,0.69]
[1759812091350,4.26439232,234.5,234.48,0.69]
[1759812091647,14.92355933,234.53,234.48,0.69]
[1759812092517,0.68,234.52,234.46,30.32]
[1759812092844,2.35280057,234.51,234.47,30.32]
[1759812093219,2.35280057,234.51,234.44,0.69]
[1759812093420,2.35280057,234.51,234.48,30.3]
[1759812093647,4.26439232,234.5,234.48,30.3]
[1759812094652,4.26439232,234.5,234.48,30.99]
[1759812095430,25.37758667,234.54,234.49,0.69]
[1759812095431,4.26417636,234.52,234.49,0.69]
[1759812095742,4.26348326,234.55,234.5,0.69]
[1759812095933,6.61628383,234.55,234.5,0.69]
[1759812096423,4.94348326,234.55,234.5,0.69]
[1759812096623,6.61628383,234.55,234.48,30.3]
[1759812096946,6.61628383,234.55,234.48,30.96]
[1759812097148,15.60219142,234.55,234.48,30.96]
[1759812097446,18.21919091,234.55,234.48,30.96]
[1759812097644,14.92219142,234.55,234.49,0.66]
[1759812098123,2.61699949,234.5,234.48,30.28]
[1759812098324,3.27699949,234.49,234.48,30.28]
[1759812098724,3.27699949,234.49,234.48,30.32]
[1759812100948,4.92457418,234.49,234.48,30.32]
[1759812101142,7.54157367,234.49,234.48,30.32]
[1759812101447,6.88157367,234.49,234.48,30.32]
[1759812102542,4.26457418,234.49,234.48,30.32]
[1759812102747,4.26457418,234.49,234.48,30.98]
[1759812102948,4.26439232,234.5,234.48,30.98]
[1759812103136,4.26439232,234.5,234.48,30.32]
[1759812104555,7.54139181,234.5,234.48,30.32]
[1759812104748,2.61699949,234.49,234.48,30.32]
[1759812105738,4.26475605,234.48,234.44,0.66]
[1759812105947,4.26475605,234.48,234.45,30.94]
[1759812106147,4.26475605,234.48,234.45,0.66]
[1759812106349,4.26475605,234.48,234.46,30.28]
[1759812106952,4.26475605,234.48,234.46,30.94]
[1759812107624,14.92635406,234.49,234.47,30.26]
[1759812107829,10.87647521,234.47,234.38,0.66]
[1759812108058,2.61699949,234.42,234.39,11.8]
[1759812108253,2.61699949,234.43,234.39,11.8]
[1759812108430,2.61699949,234.43,234.39,12.51]
[1759812108624,20.8,234.44,234.39,12.51]
[1759812108956,23.41699949,234.44,234.39,12.51]
[1759812109558,2.61699949,234.43,234.39,12.51]
[1759812110059,6.88266514,234.43,234.39,12.51]
[1759812110647,6.88266514,234.43,234.39,0.71]
[1759812110847,6.88266514,234.43,234.4,30.28]
[1759812111356,17.54682928,234.43,234.4,30.28]
[1759812111561,18.24682928,234.43,234.4,30.28]
[1759812111748,17.54682928,234.43,234.4,30.28]
[1759812112556,14.92982979,234.43,234.41,0.71]
[1759812113561,4.26566565,234.43,234.42,3.56474746]
[1759812113856,2.61699949,234.46,234.42,3.56474746]
[1759812114059,2.61699949,234.46,234.43,3.56474746]
[1759812114361,2.61699949,234.46,234.44,2.85474746]
[1759812114668,20.8,234.47,234.4,30.99]
[1759812114848,2.61699949,234.44,234.41,30.26]
[1759812115236,20.8,234.47,234.42,0.71]
[1759812115431,2.61699949,234.45,234.42,0.71]
[1759812115864,4.2654837,234.44,234.41,30.26]
[1759812116060,6.88248319,234.44,234.39,0.71]
[1759812116265,6.88248319,234.44,234.4,30.95]
[1759812116636,17.54619245,234.44,234.4,30.95]
[1759812117240,2.61699949,234.43,234.35,21.0]
[1759812117441,2.61699949,234.41,234.37,0.71]
[1759812117752,3.31699949,234.41,234.38,30.24]
[1759812117938,4.2662116,234.4,234.38,30.24]
[1759812118138,4.2662116,234.4,234.39,0.71]
[1759812118339,4.2662116,234.4,234.39,30.97]
[1759812118541,4.2662116,234.4,234.39,30.26]
[1759812118947,4.2662116,234.4,234.39,30.97]
[1759812119263,4.26566565,234.43,234.39,30.26]
[1759812119439,4.26566565,234.43,234.4,0.71]
[1759812120151,4.26566565,234.43,234.41,0.71]
[1759812120568,14.92982979,234.43,234.39,30.97]
[1759812120752,14.92982979,234.43,234.4,0.71]
[1759812121069,14.92982979,234.43,234.41,0.71]
[1759812121477,14.92982979,234.43,234.42,0.71]
[1759812121667,14.92982979,234.43,234.4,0.71]
[1759812121966,14.92982979,234.43,234.39,30.26]
[1759812121967,14.92982979,234.43,234.41,0.71]
[1759812122165,14.92982979,234.43,234.39,30.97]
[1759812122371,17.54682928,234.43,234.4,0.71]
[1759812122661,17.54682928,234.43,234.41,30.26]
[1759812122860,2.61699949,234.42,234.38,0.71]
[1759812123060,2.61699949,234.41,234.39,30.24]
[1759812123657,2.61699949,234.4,234.39,30.24]
[1759812124767,4.26639361,234.39,234.35,0.2]
[1759812125072,15.63237765,234.39,234.38,30.22]
[1759812125452,14.93237765,234.39,234.38,30.93]
[1759812125749,4.26639361,234.39,234.38,30.93]
[1759812126362,4.26639361,234.39,234.38,30.22]
[1759812127449,17.54937714,234.39,234.35,0.2]
[1759812127669,2.61699949,234.36,234.35,0.2]
[1759812127860,2.61699949,234.36,234.35,28.48]
[1759812128067,2.61699949,234.37,234.35,28.48]
[1759812128379,2.61699949,234.38,234.35,28.48]
[1759812128754,4.26675769,234.37,234.35,0.2]
[1759812129075,4.26675769,234.37,234.36,29.72]
[1759812130467,4.26675769,234.37,234.36,30.22]
[1759812131174,6.88375718,234.37,234.35,0.2]
[1759812131554,2.61699949,234.36,234.35,0.2]
[1759812132176,3.31699949,234.36,234.35,0.2]
[1759812132978,7.58393924,234.36,234.35,0.2]
[1759812135288,18.46041445,234.36,234.35,0.2]
[1759812140799,20.16831991,234.36,234.35,0.2]
[1759812143100,19.46831991,234.36,234.35,0.2]
[1759812143277,20.13831991,234.36,234.35,0.2]
[1759812143597,19.46831991,234.36,234.35,0.2]
[1759812143904,20.13831991,234.36,234.35,0.2]
[1759812144103,19.46831991,234.36,234.35,0.2]
[1759812144398,16.85132042,234.36,234.35,0.2]
[1759812144586,19.46831991,234.36,234.35,0.2]
[1759812145684,16.85132042,234.36,234.35,0.2]
[1759812145880,5.97484521,234.36,234.35,0.2]
[1759812146086,8.5918447,234.36,234.35,0.2]
[1759812146384,8.5918447,234.36,234.35,0.86]
[1759812146586,8.5918447,234.36,234.35,0.2]
[1759812148397,20.13831991,234.36,234.35,0.2]
[1759812148711,19.46831991,234.36,234.35,0.2]
[1759812149012,5.97484521,234.36,234.35,0.2]
[1759812149217,8.5918447,234.36,234.35,0.2]
[1759812150913,5.97484521,234.36,234.35,0.2]
[1759812151222,8.5918447,234.36,234.35,0.2]
[1759812153621,9.2618447,234.36,234.35,0.2]
[1759812153825,5.97484521,234.36,234.35,0.2]
[1759812153995,8.5918447,234.36,234.35,0.2]
[1759812156518,10.81821974,234.36,234.35,0.2]
[1759812157721,31.67647521,234.34,234.33,0.2]
[1759812157903,34.2934747,234.34,234.33,0.2]
[1759812158422,36.72152602,234.34,234.33,0.2]
[1759812159112,40.05007817,234.34,234.33,0.2]
[1759812159804,40.05007817,234.34,234.33,1e-08]
[1759812160000,10.87647521,234.33,234.29,0.2]
[1759812160200,18.32186275,234.34,234.3,0.69]
[1759812160408,14.9355637,234.34,234.3,0.69]
[1759812160702,1.70797839,234.33,234.3,0.69]
[1759812161222,4.26766814,234.32,234.3,0.69]
[1759812167433,4.26766814,234.32,234.31,0.69]
[1759812167623,4.26766814,234.32,234.29,0.89]
[1759812167803,4.26766814,234.32,234.3,0.69]
[1759812168204,4.26766814,234.32,234.29,0.2]
[1759812168516,4.26766814,234.32,234.3,0.71]
[1759812168722,4.26766814,234.32,234.31,0.71]
[1759812170322,1.70790546,234.33,234.31,0.71]
[1759812170529,2.22637504,234.36,234.31,0.71]
[1759812170728,10.6670241,234.37,234.31,0.71]
[1759812171303,14.93378179,234.37,234.31,0.71]
[1759812171509,16.61202952,234.37,234.31,0.71]
[1759812171825,14.93378179,234.37,234.31,0.71]
[1759812172025,4.26675769,234.37,234.31,0.71]
[1759812172610,4.26675769,234.37,234.31,4.97782785]
[1759812172907,4.26588302,234.42,234.32,21.51]
[1759812173110,4.26475605,234.48,234.37,20.8]
[1759812173313,4.26475605,234.48,234.41,20.8]
[1759812173523,4.26475605,234.48,234.42,0.71]
[1759812174230,14.92664618,234.48,234.43,30.14]
[1759812174406,14.92664618,234.48,234.37,20.8]
[1759812174606,14.92664618,234.48,234.41,21.51]
[1759812174827,10.66189013,234.48,234.42,0.71]
[1759812176718,4.26439232,234.5,234.42,0.71]
[1759812178733,14.92537313,234.5,234.42,0.71]
[1759812179636,15.58537313,234.5,234.42,0.71]
[1759812182011,17.26362086,234.5,234.42,0.71]
[1759812182328,1.67824773,234.47,234.39,0.71]
[1759812182637,1.67824773,234.44,234.4,25.54]
[1759812182938,0.66,234.43,234.41,25.54]
[1759812183140,0.66,234.42,234.41,25.54]
[1759812183319,0.66,234.44,234.41,25.54]
[1759812183648,4.26584762,234.42,234.41,25.54]
[1759812184216,4.26511984,234.46,234.41,26.25]
[1759812184439,4.26511984,234.46,234.42,0.71]
[1759812185717,14.92746506,234.47,234.43,0.71]
[1759812187838,10.66252712,234.47,234.43,0.71]
[1759812188039,10.66252712,234.47,234.44,0.71]
[1759812188940,4.26475605,234.48,234.44,0.71]
[1759812189148,4.26475605,234.48,234.45,0.71]
[1759812189437,4.26475605,234.48,234.46,0.71]
[1759812190028,10.66103575,234.5,234.44,21.51]
[1759812191346,10.66103575,234.5,234.44,0.71]
[1759812191821,14.92542807,234.5,234.44,0.71]
[1759812194443,14.92542807,234.5,234.44,21.51]
[1759812194639,14.92542807,234.5,234.45,0.71]
[1759812194939,15.58542807,234.5,234.45,0.71]
[1759812195237,0.66,234.49,234.46,30.06]
[1759812195820,4.26475605,234.48,234.46,30.06]
[1759812196020,4.26475605,234.48,234.46,30.77]
[1759812196338,4.26475605,234.48,234.47,0.71]
[1759812197258,10.66103575,234.5,234.47,0.71]
[1759812197926,10.66103575,234.5,234.46,30.06]
[1759812198139,10.66103575,234.5,234.48,0.71]
[1759812198445,4.26421048,234.51,234.48,0.71]
[1759812199423,4.26421048,234.51,234.48,0.7]
[1759812200657,4.26402865,234.52,234.48,0.7]
[1759812201850,4.26366504,234.54,234.46,34.32511694]
[1759812202149,4.26366504,234.54,234.49,0.7]
[1759812202335,0.71,234.53,234.47,0.7]
[1759812202834,14.92282765,234.54,234.47,0.7]
[1759812203141,14.92282765,234.54,234.48,30.06]
[1759812203345,14.92282765,234.54,234.49,0.7]
[1759812203541,14.92282765,234.54,234.5,0.7]
[1759812203937,25.79739433,234.57,234.51,30.06]
[1759812204137,0.71,234.56,234.52,30.06]
[1759812204345,14.92091912,234.57,234.52,30.06]
[1759812204346,0.71,234.55,234.52,30.06]
[1759812204526,0.71,234.54,234.52,30.06]
[1759812205246,4.26384684,234.53,234.52,30.06]
[1759812206146,17.31171167,234.53,234.52,30.06]
[1759812206353,17.31171167,234.53,234.52,29.56]
[1759812206835,14.92346394,234.53,234.52,29.56]
[1759812207150,10.6596171,234.53,234.52,29.56]
[1759812208348,10.6596171,234.53,234.52,30.04]
[1759812208937,4.26366504,234.54,234.52,30.04]
[1759812209144,4.26366504,234.54,234.52,30.74]
[1759812209335,14.9217318,234.56,234.52,30.74]
[1759812209542,15.6317318,234.56,234.52,30.04]
[1759812209740,0.71,234.55,234.52,30.04]
[1759812210051,16.59997953,234.56,234.52,30.04]